fUSD/lending_fUSD_20250904
["ID","MTS","AMOUNT","RATE_DAILY","PERIOD"]
[383540244,1756980033630,-300.0,0.00019872,2]
[383540245,1756980033657,-22749.75615624,0.00019873,2]
[383540246,1756980033684,-300.0,0.00019874,2]
[383540247,1756980033713,-250.0,0.00019878,2]
[383540248,1756980033739,-500.0,0.00019884,3]
[383540249,1756980033765,-500.0,0.00019886,2]
[383540250,1756980033790,-418.0,0.00019887,2]
[383540251,1756980033816,-267.46074303,0.00019888,2]
[383540252,1756980033841,-3000.0,0.00019888,2]
[383540253,1756980033866,-151.84668801,0.00019888,2]
[383540254,1756980033897,-3524.37644484,0.00019888,2]
[383540256,1756980037054,-400.0,0.00019888,2]
[383540258,1756980171661,1000.0,8.2e-07,120]
[383540259,1756980186318,1371.0,0.00025204,120]
[383540260,1756980186545,1371.0,0.00027724,120]
[383540261,1756980186716,1000.0,8.2e-07,120]
[383540262,1756980194823,1000.0,8.2e-07,120]
[383540263,1756980198875,161.38,0.00010064,2]
[383540264,1756980199310,161.38,0.00011502,2]
[383540265,1756980199531,161.38,0.00012939,2]
[383540266,1756980200353,161.38,0.00014377,2]
[383540267,1756980200417,161.38,0.00015815,2]
[383540268,1756980200481,161.38,0.00017253,2]
[383540269,1756980201773,1000.0,8.2e-07,120]
[383540270,1756980208717,1000.0,8.2e-07,120]
[383540271,1756980216336,1000.0,8.2e-07,120]
[383540272,1756980218982,-155.86787672,0.0001869,2]
[383540273,1756980223035,1000.0,8.2e-07,120]
[383540274,1756980231199,1000.0,8.2e-07,120]
[383540276,1756980278117,250.0,0.00015,2]
[383540277,1756980279204,300.0,0.00017,2]
[383540279,1756980412959,-5.51212328,0.0001869,2]
[383540281,1756980523710,-207.22650462,0.00019729,2]
[383540282,1756980531056,-400.0,0.00019729,2]
[383540283,1756980531640,666.0,0.00019245,3]
[383540285,1756980632136,-449.6702639,0.00019729,2]
[383540286,1756980632398,-768.43323148,0.00019729,2]
[383540287,1756980632408,-1550.46,0.00019871,2]
[383540288,1756980632417,-500.0,0.00019872,3]
[383540289,1756980632428,-300.0,0.00019872,2]
[383540290,1756980632438,-500.0,0.00019873,2]
[383540291,1756980632448,-200.77937076,0.00019873,3]
[383540292,1756980632460,-299.22062924,0.00019873,3]
[383540293,1756980632470,-1816.7771468,0.00019874,2]
[383540294,1756980632480,-300.0,0.00019877,2]
[383540295,1756980632489,-500.0,0.00019882,2]
[383540296,1756980632499,-300.0,0.00019885,2]
[383540297,1756980632512,-1200.0,0.00019885,2]
[383540298,1756980632522,-205.0,0.00019886,2]
[383540299,1756980632532,-9999.99,0.00019886,2]
[383540300,1756980632541,-299.99,0.00019886,7]
[383540301,1756980632551,-150.99,0.00019886,2]
[383540302,1756980632561,-999.99,0.00019886,2]
[383540303,1756980632571,-151.0,0.00019888,2]
[383540305,1756980632580,-151.0,0.00019888,2]
[383540307,1756980632590,-151.0,0.00019888,2]
[383540309,1756980632600,-151.0,0.00019888,2]
[383540311,1756980632610,-151.0,0.00019888,2]
[383540314,1756980632620,-151.0,0.00019888,2]
[383540317,1756980632630,-151.0,0.00019888,2]
[383540320,1756980632640,-151.0,0.00019888,2]
[383540324,1756980632654,-151.0,0.00019888,2]
[383540327,1756980632663,-151.0,0.00019888,2]
[383540329,1756980632672,-151.0,0.00019888,2]
[383540332,1756980632681,-151.0,0.00019888,2]
[383540335,1756980632690,-200.0,0.00019888,2]
[383540337,1756980632700,-2322.21153253,0.00019888,2]
[383540340,1756980632709,-322.6107,0.00019888,2]
[383540343,1756980632718,-160.0,0.00019888,2]
[383540346,1756980632727,-695.39793187,0.00019888,2]
[383540349,1756980632736,-130.89204046,0.00019888,2]
[383540354,1756980632754,-503.15614852,0.00019888,2]
[383540409,1756980640326,-456.30717847,0.00019888,2]
[383540410,1756980640414,-334.46707962,0.00019888,2]
[383540411,1756980640435,-350.9496395,0.00019888,2]
[383540412,1756980640445,-500.0,0.00019888,2]
[383540413,1756980640455,-202.36626526,0.00019888,2]
[383540414,1756980640464,-151.0,0.00019888,2]
[383540415,1756980640474,-151.0,0.00019888,2]
[383540416,1756980640483,-200.0,0.00019888,2]
[383540417,1756980640493,-151.0,0.00019888,2]
[383540418,1756980640502,-151.0,0.00019888,2]
[383540419,1756980640512,-151.0,0.00019888,2]
[383540420,1756980640521,-267.46074303,0.00019888,2]
[383540421,1756980640531,-151.0,0.00019888,2]
[383540422,1756980640540,-151.0,0.00019888,2]
[383540423,1756980640549,-151.0,0.00019888,2]
[383540424,1756980640559,-151.0,0.00019888,2]
[383540425,1756980640568,-151.0,0.00019888,2]
[383540426,1756980640578,-201.93286099,0.00019888,2]
[383540427,1756980640587,-151.0,0.00019888,2]
[383540428,1756980640596,-151.0,0.00019888,2]
[383540429,1756980640606,-151.0,0.00019888,2]
[383540430,1756980640615,-151.0,0.00019888,2]
[383540431,1756980640624,-151.0,0.00019888,2]
[383540432,1756980640633,-151.0,0.00019888,2]
[383540433,1756980640643,-151.0,0.00019888,2]
[383540434,1756980640652,-151.0,0.00019888,2]
[383540435,1756980640662,-171.05589128,0.00019888,2]
[383540436,1756980640697,-9040.29209857,0.00019888,2]
[383540437,1756980640707,-151.0,0.00019888,2]
[383540438,1756980640715,-151.0,0.00019888,2]
[383540439,1756980640724,-151.0,0.00019888,2]
[383540440,1756980640734,-285.95900921,0.00019888,2]
[383540441,1756980640743,-151.0,0.00019888,2]
[383540442,1756980640752,-151.0,0.00019888,2]
[383540443,1756980640761,-151.0,0.00019888,2]
[383540444,1756980640770,-151.0,0.00019888,2]
[383540445,1756980640779,-264.37230147,0.00019888,2]
[383540446,1756980640789,-151.83622645,0.00019888,2]
[383540447,1756980640798,-1000.0,0.00019888,2]
[383540448,1756980640807,-151.0,0.00019888,2]
[383540449,1756980640816,-1000.0,0.00019888,2]
[383540450,1756980640825,-1000.0,0.00019888,2]
[383540451,1756980640835,-1000.0,0.00019888,2]
[383540452,1756980640844,-1000.0,0.00019888,2]
[383540453,1756980640853,-1000.0,0.00019888,2]
[383540454,1756980640862,-1000.0,0.00019888,2]
[383540455,1756980640871,-1000.0,0.00019888,2]
[383540456,1756980640881,-1000.0,0.00019888,2]
[383540457,1756980640890,-1000.0,0.00019888,2]
[383540458,1756980640900,-1000.0,0.00019888,2]
[383540459,1756980640910,-292.68735082,0.00019888,2]
[383540460,1756980640919,-150.99,0.00019888,2]
[383540461,1756980640929,-9999.99,0.00019888,2]
[383540462,1756980640938,-16032.94,0.00019888,2]
[383540463,1756980640947,-9534.0,0.00019888,2]
[383540464,1756980640957,-523.4,0.00019891,2]
[383540465,1756980640966,-46344.15271506,0.000199,2]
[383540466,1756980640976,-500.0,0.000199,2]
[383540467,1756980640985,-500.0,0.000199,2]
[383540468,1756980640994,-287.28697505,0.000199,2]
[383540469,1756980641004,-507.18729633,0.000199,2]
[383540470,1756980641013,-500.0,0.000199,2]
[383540471,1756980641023,-160.0,0.00019901,7]
[383540472,1756980641032,-500.0,0.00019943,2]
[383540473,1756980641042,-156.587,0.00019943,2]
[383540474,1756980641051,-650.30429048,0.00019943,2]
[383540475,1756980641060,-162.380719,0.00019998,2]
[383540476,1756980641070,-26592.76183871,0.0002,2]
[383540477,1756980641079,-160.76241013,0.00020053,2]
[383540478,1756980641089,-161.38,0.00020128,2]
[383540479,1756980641099,-1371.0,0.00020163,2]
[383540480,1756980641108,-196.62,0.0002018,2]
[383540481,1756980641118,-269.05,0.00020187,2]
[383540482,1756980641127,-596.85,0.00020194,2]
[383540483,1756980641136,-1333.48,0.00020219,2]
[383540484,1756980641147,-1392.77349538,0.000203,2]
[383540485,1756980641165,-291.27,0.00020304,2]
[383540486,1756980641178,-695.52,0.0002034,2]
[383540487,1756980641189,-179.96,0.00020345,2]
[383540488,1756980641199,-4357.40187314,0.00020351,2]
[383540489,1756980641209,-1753.88,0.00020356,2]
[383540490,1756980641219,-247.6816181,0.00020371,2]
[383540494,1756980643371,-2434.1783819,0.00020371,2]
[383540495,1756980643380,-250.0,0.00020372,2]
[383540496,1756980643390,-151.0,0.00020408,2]
[383540497,1756980643399,-200.0,0.00020436,2]
[383540498,1756980643412,-151.0,0.00020436,2]
[383540499,1756980643421,-1000.0,0.00020448,2]
[383540500,1756980643430,-1000.0,0.00020448,2]
[383540501,1756980643440,-1000.0,0.00020448,2]
[383540502,1756980643449,-200.0,0.00020465,2]
[383540503,1756980643459,-300.0,0.00020559,2]
[383540504,1756980643469,-500.0,0.00020559,3]
[383540505,1756980643478,-250.0,0.00020559,2]
[383540506,1756980643488,-500.0,0.00020559,2]
[383540507,1756980643498,-1261.29170295,0.00020576,2]
[383540508,1756980643508,-167.11,0.000207,2]
[383540509,1756980643517,-1261.29170296,0.00020756,2]
[383540510,1756980643527,-1741.058,0.00020795,2]
[383540511,1756980643537,-194.787,0.00020795,2]
[383540512,1756980643546,-2000.0,0.000208,2]
[383540513,1756980643555,-65.64779996,0.00020908,2]
[383540514,1756980643580,-291.35220004,0.00020908,2]
[383540515,1756980643589,-500.0,0.00020927,2]
[383540516,1756980643599,-200.0,0.00020927,2]
[383540517,1756980643608,-150.0,0.00020934,2]
[383540519,1756980643617,-156.67306377,0.00020934,2]
[383540521,1756980643627,-150.00000001,0.00020934,2]
[383540522,1756980643637,-200.0,0.00020984,2]
[383540523,1756980643646,-151.0,0.00020984,2]
[383540524,1756980643657,-1500.0,0.00020996,2]
[383540525,1756980643667,-1500.0,0.00020996,2]
[383540526,1756980643677,-357.0,0.00021005,2]
[383540528,1756980643687,-236.83,0.00021099,2]
[383540529,1756980643696,-357.0,0.0002118,2]
[383540530,1756980643705,-3396.5186585,0.00021191,3]
[383540531,1756980643715,-334.5472959,0.00021257,2]
[383540532,1756980643725,-160.0,0.00021257,2]
[383540533,1756980643734,-277.35679052,0.00021257,2]
[383540534,1756980643743,-5888.0,0.00021342,2]
[383540535,1756980643753,-357.0,0.00021354,2]
[383540536,1756980643762,-695.52,0.00021357,2]
[383540537,1756980643772,-357.0,0.00021362,2]
[383540538,1756980643782,-3010.21128815,0.00021444,2]
[383540539,1756980643791,-160.0,0.00021446,2]
[383540540,1756980643800,-160.0,0.00021446,2]
[383540541,1756980643812,-160.0,0.00021446,2]
[383540542,1756980643821,-514.64478986,0.00021446,2]
[383540543,1756980643830,-212.59699798,0.00021446,2]
[383540544,1756980644059,-407.39222275,0.00021479,2]
[383540545,1756980644069,-599.0,0.000215,2]
[383540546,1756980644079,-357.0,0.00021504,2]
[383540547,1756980644090,-200.0,0.00021532,2]
[383540548,1756980644101,-151.0,0.00021532,2]
[383540549,1756980644111,-2000.0,0.00021544,2]
[383540550,1756980644123,-503.5409457,0.00021544,2]
[383540551,1756980644132,-357.0,0.0002157,2]
[383540552,1756980644141,-357.0,0.00021595,2]
[383540553,1756980644151,-420.0,0.00021655,2]
[383540554,1756980644163,-200.0,0.000217,7]
[383540555,1756980644173,-918.0,0.000217,2]
[383540556,1756980644183,-500.0,0.00021702,2]
[383540557,1756980644192,-300.0,0.00021702,2]
[383540558,1756980644201,-195.0,0.00021702,2]
[383540559,1756980644211,-500.0,0.00021702,3]
[383540560,1756980644222,-193.0,0.00021702,2]
[383540561,1756980644231,-250.0,0.00021702,2]
[383540562,1756980644240,-340.56,0.00021702,2]
[383540563,1756980644250,-1258.0,0.00021708,2]
[383540564,1756980644259,-2035.0,0.00021708,2]
[383540565,1756980644268,-3382.0,0.00021708,2]
[383540566,1756980644278,-924.0,0.00021712,2]
[383540567,1756980644287,-1300.0,0.00021712,2]
[383540568,1756980644297,-600.0,0.00021712,2]
[383540569,1756980644306,-567.0,0.00021712,2]
[383540570,1756980644316,-1577.0,0.00021712,2]
[383540571,1756980644326,-811.0,0.00021712,2]
[383540572,1756980644335,-2241.0,0.00021712,2]
[383540573,1756980644344,-6163.0,0.00021712,2]
[383540574,1756980644353,-4163.0,0.00021712,2]
[383540575,1756980644362,-21149.0,0.00021712,2]
[383540576,1756980644372,-724.0,0.00021712,2]
[383540577,1756980644381,-3052.0,0.00021712,2]
[383540578,1756980644391,-253.0,0.00021723,2]
[383540579,1756980644400,-205.0,0.00021723,2]
[383540580,1756980644410,-150.0,0.00021723,2]
[383540581,1756980644420,-1680.0,0.00021759,2]
[383540582,1756980644429,-500.0,0.000218,7]
[383540583,1756980644439,-1000.0,0.00021817,2]
[383540584,1756980644448,-5000.0,0.00021817,2]
[383540585,1756980644458,-10310.57652148,0.00021817,2]
[383540586,1756980644467,-380.03591995,0.00021817,2]
[383540587,1756980644478,-167.60621106,0.00021817,2]
[383540588,1756980644487,-2500.0,0.00021858,2]
[383540589,1756980644497,-500.0,0.00021858,2]
[383540590,1756980644507,-300.0,0.00021858,2]
[383540591,1756980644517,-300.0,0.00021858,2]
[383540592,1756980644527,-195.0,0.00021858,2]
[383540593,1756980644536,-500.0,0.00021858,3]
[383540594,1756980644546,-250.0,0.00021858,2]
[383540595,1756980644556,-700.0,0.000219,7]
[383540596,1756980644565,-167.46447501,0.000219,2]
[383540597,1756980644575,-167.46447501,0.000219,2]
[383540598,1756980644584,-167.46447501,0.000219,2]
[383540599,1756980644593,-167.46447501,0.000219,2]
[383540600,1756980644602,-167.46447501,0.000219,2]
[383540601,1756980644613,-167.46447501,0.000219,2]
[383540602,1756980644622,-167.46447501,0.000219,2]
[383540603,1756980644633,-167.46447501,0.000219,2]
[383540604,1756980644644,-167.46447501,0.000219,2]
[383540605,1756980644656,-167.46447501,0.000219,2]
[383540606,1756980644666,-167.46447501,0.000219,2]
[383540607,1756980644675,-167.46447501,0.000219,2]
[383540608,1756980644684,-167.46447501,0.000219,2]
[383540609,1756980644693,-156.01,0.000219,2]
[383540610,1756980644704,-500.0,0.00021906,2]
[383540611,1756980644715,-500.0,0.00021906,2]
[383540612,1756980644725,-500.0,0.00021906,2]
[383540613,1756980644737,-500.0,0.00021906,2]
[383540614,1756980644746,-500.0,0.00021906,2]
[383540615,1756980644757,-150.0,0.00021906,2]
[383540616,1756980644767,-357.0,0.00021906,2]
[383540617,1756980644778,-340.56,0.00021907,2]
[383540618,1756980644788,-119765.6168382,0.00021917,2]
[383540619,1756980644798,-270.03641254,0.00021917,2]
[383540620,1756980644807,-400.0,0.00021917,2]
[383540621,1756980644819,-402.92928166,0.00021917,2]
[383540622,1756980644829,-402.09733115,0.00021917,2]
[383540623,1756980644838,-400.0,0.00021917,2]
[383540624,1756980644848,-401.69292096,0.00021917,2]
[383540625,1756980644858,-401.84489862,0.00021917,2]
[383540626,1756980644867,-403.43507688,0.00021917,2]
[383540627,1756980644877,-419.918402,0.00021917,2]
[383540628,1756980644887,-400.0,0.00021917,2]
[383540629,1756980644897,-400.0,0.00021917,2]
[383540630,1756980644906,-400.0,0.00021917,2]
[383540631,1756980644916,-400.0,0.00021917,2]
[383540632,1756980644925,-400.0,0.00021917,2]
[383540633,1756980644935,-400.0,0.00021917,2]
[383540634,1756980644945,-400.0,0.00021917,2]
[383540635,1756980644955,-400.0,0.00021917,2]
[383540636,1756980644964,-403.74316056,0.00021917,2]
[383540637,1756980644974,-400.0,0.00021917,2]
[383540638,1756980644997,-400.0,0.00021917,2]
[383540639,1756980645007,-400.0,0.00021917,2]
[383540640,1756980645016,-400.0,0.00021917,2]
[383540641,1756980645026,-400.0,0.00021917,2]
[383540642,1756980645036,-400.0,0.00021917,2]
[383540643,1756980645048,-400.0,0.00021917,2]
[383540644,1756980645060,-402.4469949,0.00021917,2]
[383540645,1756980645072,-400.0,0.00021917,2]
[383540646,1756980645082,-400.0,0.00021917,2]
[383540647,1756980645092,-404.47486443,0.00021917,2]
[383540648,1756980645102,-400.0,0.00021917,2]
[383540649,1756980645115,-400.0,0.00021917,2]
[383540650,1756980645128,-400.0,0.00021917,2]
[383540651,1756980645139,-437.08205569,0.00021917,2]
[383540652,1756980645149,-400.0,0.00021917,2]
[383540653,1756980645159,-400.0,0.00021917,2]
[383540654,1756980645169,-400.0,0.00021917,2]
[383540655,1756980645179,-400.0,0.00021917,2]
[383540656,1756980645190,-406.6802331,0.00021917,2]
[383540657,1756980645200,-400.0,0.00021917,2]
[383540658,1756980645211,-430.36,0.00021917,2]
[383540659,1756980645221,-400.0,0.00021917,2]
[383540660,1756980645232,-405.66062889,0.00021917,2]
[383540661,1756980645243,-400.0,0.00021917,2]
[383540662,1756980645253,-400.0,0.00021917,2]
[383540663,1756980645263,-400.0,0.00021917,2]
[383540664,1756980645274,-400.0,0.00021917,2]
[383540665,1756980645283,-400.0,0.00021917,2]
[383540666,1756980645294,-400.0,0.00021917,2]
[383540667,1756980645304,-400.0,0.00021917,2]
[383540668,1756980645315,-400.0,0.00021917,2]
[383540669,1756980645324,-404.90402412,0.00021917,2]
[383540670,1756980645334,-403.8170525,0.00021917,2]
[383540671,1756980645344,-405.68599761,0.00021917,2]
[383540672,1756980645353,-166.858414,0.00021917,2]
[383540673,1756980645363,-400.0,0.00021917,2]
[383540674,1756980645372,-400.0,0.00021917,2]
[383540675,1756980645382,-400.0,0.00021917,2]
[383540676,1756980645392,-400.0,0.00021917,2]
[383540677,1756980645401,-400.0,0.00021917,2]
[383540678,1756980645411,-400.0,0.00021917,2]
[383540679,1756980645421,-400.0,0.00021917,2]
[383540680,1756980645432,-400.0,0.00021917,2]
[383540681,1756980645442,-400.0,0.00021917,2]
[383540682,1756980645451,-400.0,0.00021917,2]
[383540683,1756980645462,-400.0,0.00021917,2]
[383540684,1756980645471,-400.0,0.00021917,2]
[383540685,1756980645481,-400.0,0.00021917,2]
[383540686,1756980645490,-400.0,0.00021917,2]
[383540687,1756980645500,-400.0,0.00021917,2]
[383540688,1756980645509,-405.80384197,0.00021917,2]
[383540689,1756980645519,-400.0,0.00021917,2]
[383540690,1756980645529,-400.0,0.00021917,2]
[383540691,1756980645538,-400.0,0.00021917,2]
[383540692,1756980645548,-400.0,0.00021917,2]
[383540693,1756980645557,-400.0,0.00021917,2]
[383540694,1756980645567,-400.0,0.00021917,2]
[383540695,1756980645577,-400.0,0.00021917,2]
[383540696,1756980645586,-400.0,0.00021917,2]
[383540697,1756980645601,-812.24,0.00021917,2]
[383540698,1756980645611,-400.0,0.00021917,2]
[383540699,1756980645621,-400.0,0.00021917,2]
[383540700,1756980645631,-400.0,0.00021917,2]
[383540701,1756980645641,-400.0,0.00021917,2]
[383540702,1756980645650,-403.47019944,0.00021917,2]
[383540703,1756980645662,-400.0,0.00021917,2]
[383540704,1756980645671,-400.0,0.00021917,2]
[383540705,1756980645681,-400.0,0.00021917,2]
[383540706,1756980645691,-400.0,0.00021917,2]
[383540707,1756980645700,-400.0,0.00021917,2]
[383540708,1756980645711,-400.0,0.00021917,2]
[383540709,1756980645723,-400.0,0.00021917,2]
[383540710,1756980645734,-400.0,0.00021917,2]
[383540711,1756980645744,-400.0,0.00021917,2]
[383540712,1756980645754,-400.0,0.00021917,2]
[383540713,1756980645764,-400.0,0.00021917,2]
[383540714,1756980645775,-400.0,0.00021917,2]
[383540715,1756980645785,-400.0,0.00021917,2]
[383540716,1756980645795,-400.0,0.00021917,2]
[383540717,1756980645805,-400.0,0.00021917,2]
[383540718,1756980645815,-401.32478943,0.00021917,2]
[383540719,1756980645826,-400.0,0.00021917,2]
[383540720,1756980645839,-400.0,0.00021917,2]
[383540721,1756980645849,-400.0,0.00021917,2]
[383540722,1756980645859,-400.0,0.00021917,2]
[383540723,1756980645870,-400.0,0.00021917,2]
[383540724,1756980645880,-400.0,0.00021917,2]
[383540725,1756980645891,-400.0,0.00021917,2]
[383540726,1756980645901,-400.0,0.00021917,2]
[383540727,1756980645911,-400.0,0.00021917,2]
[383540728,1756980645921,-400.0,0.00021917,2]
[383540729,1756980645931,-400.0,0.00021917,2]
[383540730,1756980645941,-400.0,0.00021917,2]
[383540731,1756980645951,-400.0,0.00021917,2]
[383540732,1756980645961,-400.0,0.00021917,2]
[383540733,1756980645972,-402.54953481,0.00021917,2]
[383540734,1756980645983,-175.669305,0.00021917,2]
[383540735,1756980645995,-400.0,0.00021917,2]
[383540736,1756980646005,-400.0,0.00021917,2]
[383540737,1756980646015,-400.0,0.00021917,2]
[383540738,1756980646024,-400.0,0.00021917,2]
[383540739,1756980646034,-400.0,0.00021917,2]
[383540740,1756980646047,-400.0,0.00021917,2]
[383540741,1756980646058,-400.0,0.00021917,2]
[383540742,1756980646068,-400.0,0.00021917,2]
[383540743,1756980646078,-400.0,0.00021917,2]
[383540744,1756980646088,-400.0,0.00021917,2]
[383540745,1756980646098,-403.61325231,0.00021917,2]
[383540746,1756980646108,-400.0,0.00021917,2]
[383540747,1756980646118,-400.0,0.00021917,2]
[383540748,1756980646128,-400.0,0.00021917,2]
[383540749,1756980646137,-400.0,0.00021917,2]
[383540750,1756980646147,-414.40820197,0.00021917,2]
[383540751,1756980646158,-400.0,0.00021917,2]
[383540752,1756980646168,-400.0,0.00021917,2]
[383540753,1756980646178,-405.67458282,0.00021917,2]
[383540754,1756980646188,-400.0,0.00021917,2]
[383540755,1756980646198,-400.0,0.00021917,2]
[383540756,1756980646208,-400.0,0.00021917,2]
[383540757,1756980646219,-400.0,0.00021917,2]
[383540758,1756980646229,-497.89670862,0.00021917,2]
[383540760,1756980646239,-400.0,0.00021917,2]
[383540761,1756980646250,-400.0,0.00021917,2]
[383540762,1756980646259,-400.0,0.00021917,2]
[383540763,1756980646270,-400.0,0.00021917,2]
[383540764,1756980646281,-400.0,0.00021917,2]
[383540765,1756980646291,-400.0,0.00021917,2]
[383540766,1756980646303,-400.0,0.00021917,2]
[383540767,1756980646313,-400.0,0.00021917,2]
[383540768,1756980646323,-400.0,0.00021917,2]
[383540769,1756980646335,-400.0,0.00021917,2]
[383540770,1756980646344,-400.0,0.00021917,2]
[383540771,1756980646355,-400.0,0.00021917,2]
[383540772,1756980646365,-400.0,0.00021917,2]
[383540773,1756980646374,-400.0,0.00021917,2]
[383540774,1756980646384,-400.0,0.00021917,2]
[383540775,1756980646395,-400.0,0.00021917,2]
[383540776,1756980646405,-400.0,0.00021917,2]
[383540777,1756980646415,-400.0,0.00021917,2]
[383540778,1756980646425,-400.0,0.00021917,2]
[383540779,1756980646438,-400.0,0.00021917,2]
[383540780,1756980646448,-400.0,0.00021917,2]
[383540781,1756980646458,-400.0,0.00021917,2]
[383540782,1756980646467,-403.54659396,0.00021917,2]
[383540783,1756980646477,-403.28367637,0.00021917,2]
[383540784,1756980646487,-400.0,0.00021917,2]
[383540785,1756980646497,-400.0,0.00021917,2]
[383540786,1756980646510,-400.0,0.00021917,2]
[383540787,1756980646520,-400.0,0.00021917,2]
[383540788,1756980646530,-400.0,0.00021917,2]
[383540789,1756980646539,-406.15163402,0.00021917,2]
[383540790,1756980646549,-400.0,0.00021917,2]
[383540791,1756980646558,-400.0,0.00021917,2]
[383540792,1756980646568,-400.0,0.00021917,2]
[383540793,1756980646578,-300.0,0.00021917,2]
[383540794,1756980646588,-400.0,0.00021917,2]
[383540795,1756980646598,-400.0,0.00021917,2]
[383540796,1756980646607,-400.0,0.00021917,2]
[383540797,1756980646617,-400.0,0.00021917,2]
[383540798,1756980646626,-400.0,0.00021917,2]
[383540799,1756980646635,-400.0,0.00021917,2]
[383540800,1756980646644,-400.0,0.00021917,2]
[383540801,1756980646654,-400.0,0.00021917,2]
[383540802,1756980646665,-476.67,0.00021917,2]
[383540803,1756980646674,-400.0,0.00021917,2]
[383540804,1756980646684,-400.0,0.00021917,2]
[383540805,1756980646694,-400.89627185,0.00021917,2]
[383540806,1756980646703,-400.0,0.00021917,2]
[383540807,1756980646712,-400.0,0.00021917,2]
[383540808,1756980646721,-400.0,0.00021917,2]
[383540809,1756980646730,-400.0,0.00021917,2]
[383540810,1756980646739,-400.0,0.00021917,2]
[383540811,1756980646747,-400.0,0.00021917,2]
[383540812,1756980646757,-404.78447978,0.00021917,2]
[383540813,1756980646767,-400.0,0.00021917,2]
[383540814,1756980646776,-400.0,0.00021917,2]
[383540815,1756980646786,-400.0,0.00021917,2]
[383540816,1756980646796,-401.35291353,0.00021917,2]
[383540817,1756980646806,-400.0,0.00021917,2]
[383540818,1756980646815,-400.0,0.00021917,2]
[383540819,1756980646825,-411.75744066,0.00021917,2]
[383540820,1756980646835,-400.0,0.00021917,2]
[383540821,1756980646844,-400.0,0.00021917,2]
[383540822,1756980646855,-400.0,0.00021917,2]
[383540823,1756980646865,-400.0,0.00021917,2]
[383540824,1756980646875,-400.0,0.00021917,2]
[383540825,1756980646885,-568.96,0.00021917,2]
[383540826,1756980646895,-400.0,0.00021917,2]
[383540827,1756980646906,-400.0,0.00021917,2]
[383540828,1756980646915,-401.14830703,0.00021917,2]
[383540829,1756980646925,-400.0,0.00021917,2]
[383540830,1756980646934,-400.0,0.00021917,2]
[383540831,1756980646944,-400.0,0.00021917,2]
[383540832,1756980646956,-400.0,0.00021917,2]
[383540833,1756980646966,-400.0,0.00021917,2]
[383540834,1756980646976,-400.0,0.00021917,2]
[383540835,1756980646985,-400.0,0.00021917,2]
[383540836,1756980646996,-400.0,0.00021917,2]
[383540837,1756980647006,-400.0,0.00021917,2]
[383540838,1756980647017,-400.0,0.00021917,2]
[383540839,1756980647027,-400.0,0.00021917,2]
[383540840,1756980647038,-400.0,0.00021917,2]
[383540841,1756980647049,-400.0,0.00021917,2]
[383540842,1756980647058,-402.2783997,0.00021917,2]
[383540843,1756980647068,-400.0,0.00021917,2]